[Event "*** Titled Tuesday Blitz"]
[Site "Chess.com"]
[Date "2021.04.06"]
[Round "10"]
[White "Firouzja2003"]
[Black "Hikaru"]
[Result "1/2-1/2"]
[WhiteElo "3150"]
[BlackElo "3235"]
[TimeControl "180+1"]
[EndTime "11:56:10 PDT"]
[Termination "Game drawn by agreement"]

1. d4 {[%clk 0:02:57.2]} 1... Nf6 {[%clk 0:03:00]} 2. Bg5 {[%clk 0:02:57]} 2...
c5 {[%clk 0:02:59.7]} 3. d5 {[%clk 0:02:56.3]} 3... Qb6 {[%clk 0:03:00.1]} 4.
Nc3 {[%clk 0:02:55.4]} 4... d6 {[%clk 0:02:59.4]} 5. e4 {[%clk 0:02:52.8]} 5...
g6 {[%clk 0:02:59.6]} 6. Bd3 {[%clk 0:02:31]} 6... Bg7 {[%clk 0:02:56.1]} 7.
Nge2 {[%clk 0:02:25.2]} 7... Nbd7 {[%clk 0:02:53.8]} 8. O-O {[%clk 0:02:24.7]}
8... Ne5 {[%clk 0:02:53.4]} 9. Bb5+ {[%clk 0:01:59.2]} 9... Bd7 {[%clk 0:02:53]}
10. a4 {[%clk 0:01:59.5]} 10... a6 {[%clk 0:02:46.9]} 11. a5 {[%clk 0:01:58.4]}
11... Qc7 {[%clk 0:02:46.9]} 12. Bxd7+ {[%clk 0:01:55.2]} 12... Nexd7 {[%clk
0:02:47.8]} 13. Qd2 {[%clk 0:01:52.9]} 13... O-O {[%clk 0:02:33.4]} 14. Bh6
{[%clk 0:01:53.1]} 14... Rab8 {[%clk 0:02:29.9]} 15. Bxg7 {[%clk 0:01:52.4]}
15... Kxg7 {[%clk 0:02:30.8]} 16. b3 {[%clk 0:01:48.7]} 16... b5 {[%clk
0:02:28.3]} 17. axb6 {[%clk 0:01:48.4]} 17... Rxb6 {[%clk 0:02:29]} 18. Ng3
{[%clk 0:01:40.1]} 18... c4 {[%clk 0:02:19.7]} 19. b4 {[%clk 0:01:36.8]} 19...
Rxb4 {[%clk 0:02:17.5]} 20. Rxa6 {[%clk 0:01:36.8]} 20... Rfb8 {[%clk
0:02:11.3]} 21. h4 {[%clk 0:01:29.2]} 21... h5 {[%clk 0:02:05.3]} 22. Nge2
{[%clk 0:01:05.4]} 22... R4b6 {[%clk 0:01:50.6]} 23. Ra4 {[%clk 0:00:59.9]}
23... Rb4 {[%clk 0:01:48]} 24. Rxb4 {[%clk 0:00:57.2]} 24... Rxb4 {[%clk
0:01:47.9]} 25. Nd4 {[%clk 0:00:57.1]} 25... Ne5 {[%clk 0:01:47.7]} 26. f3
{[%clk 0:00:48.1]} 26... Qc5 {[%clk 0:01:43.8]} 27. Kh2 {[%clk 0:00:47.5]} 27...
Rb7 {[%clk 0:01:35.9]} 28. Ra1 {[%clk 0:00:44.4]} 28... Rb8 {[%clk 0:01:24.2]}
29. Nce2 {[%clk 0:00:41.8]} 29... Qb4 {[%clk 0:01:12.7]} 30. Qxb4 {[%clk
0:00:29.9]} 30... Rxb4 {[%clk 0:01:12.4]} 31. Ra7 {[%clk 0:00:30.6]} 31... Kf8
{[%clk 0:01:11.9]} 32. Nc6 {[%clk 0:00:29.8]} 32... Rb2 {[%clk 0:01:10.1]} 33.
Ned4 {[%clk 0:00:26]} 33... Ng8 {[%clk 0:01:02.9]} 34. Kg3 {[%clk 0:00:20.9]}
34... c3 {[%clk 0:00:57.4]} 35. Ra3 {[%clk 0:00:15.3]} 35... Nd7 {[%clk
0:00:49.8]} 36. Rxc3 {[%clk 0:00:15]} 36... Ra2 {[%clk 0:00:46.5]} 37. Rb3
{[%clk 0:00:14.5]} 37... Ra8 {[%clk 0:00:47.2]} 38. Rb7 {[%clk 0:00:14.2]} 38...
Nc5 {[%clk 0:00:47.5]} 39. Rc7 {[%clk 0:00:12.4]} 39... Na6 {[%clk 0:00:47.7]}
40. Ra7 {[%clk 0:00:07.3]} 40... Rxa7 {[%clk 0:00:48]} 41. Nxa7 {[%clk
0:00:08.2]} 41... Nf6 {[%clk 0:00:48]} 42. Nab5 {[%clk 0:00:05.9]} 42... Nd7
{[%clk 0:00:48.2]} 43. Nb3 {[%clk 0:00:05.8]} 43... Nb4 {[%clk 0:00:47]} 44. c4
{[%clk 0:00:06]} 44... Nd3 {[%clk 0:00:45]} 45. N5d4 {[%clk 0:00:05.7]} 45...
Nb6 {[%clk 0:00:40.4]} 46. Nd2 {[%clk 0:00:05.7]} 46... Nb2 {[%clk 0:00:40.9]}
47. Nc6 {[%clk 0:00:05]} 47... N6xc4 {[%clk 0:00:40.5]} 48. Nxc4 {[%clk
0:00:05.8]} 48... Nxc4 {[%clk 0:00:38.1]} 1/2-1/2

[Event "*** Titled Tuesday Blitz"]
[Site "Chess.com"]
[Date "2021.04.06"]
[Round "10"]
[White "Natalya_Buksa"]
[Black "Forantes"]
[Result "0-1"]
[WhiteElo "2487"]
[BlackElo "2367"]
[TimeControl "180+1"]
[EndTime "11:56:10 PDT"]
[Termination "Forantes won by checkmate"]

1. d4 {[%clk 0:03:00.9]} 1... Nf6 {[%clk 0:02:59.9]} 2. Nc3 {[%clk 0:03:01.2]}
2... d5 {[%clk 0:02:59.6]} 3. Bf4 {[%clk 0:03:01.7]} 3... g6 {[%clk 0:02:58.6]}
4. e3 {[%clk 0:03:01.7]} 4... Bg7 {[%clk 0:02:58.9]} 5. h4 {[%clk 0:03:02.3]}
5... h5 {[%clk 0:02:57.8]} 6. Nf3 {[%clk 0:03:00.8]} 6... O-O {[%clk 0:02:58.4]}
7. Be2 {[%clk 0:03:01.3]} 7... c5 {[%clk 0:02:58.7]} 8. Ne5 {[%clk 0:03:00.5]}
8... Nc6 {[%clk 0:02:54.3]} 9. Qd2 {[%clk 0:02:56.6]} 9... Nd7 {[%clk
0:02:48.8]} 10. Nxd7 {[%clk 0:02:51]} 10... Qxd7 {[%clk 0:02:47.6]} 11. dxc5
{[%clk 0:02:51.6]} 11... e5 {[%clk 0:02:46.9]} 12. Bg3 {[%clk 0:02:50.9]} 12...
d4 {[%clk 0:02:47.3]} 13. exd4 {[%clk 0:02:47.9]} 13... exd4 {[%clk 0:02:47.1]}
14. Nb5 {[%clk 0:02:44.8]} 14... Qd5 {[%clk 0:01:33.6]} 15. Nc7 {[%clk
0:02:42.9]} 15... Qxg2 {[%clk 0:01:32.1]} 16. O-O-O {[%clk 0:02:42.4]} 16... Rb8
{[%clk 0:01:31.4]} 17. Rdg1 {[%clk 0:02:29.8]} 17... Qe4 {[%clk 0:01:27.5]} 18.
Bd3 {[%clk 0:02:30.2]} 18... Qf3 {[%clk 0:01:19.8]} 19. Be2 {[%clk 0:02:07.5]}
19... Qf5 {[%clk 0:01:19.3]} 20. Bd6 {[%clk 0:02:00.9]} 20... Rd8 {[%clk
0:01:07.8]} 21. Bd3 {[%clk 0:02:01]} 21... Qf3 {[%clk 0:01:00.4]} 22. Re1 {[%clk
0:01:53.6]} 22... Bf5 {[%clk 0:00:56.1]} 23. Nb5 {[%clk 0:01:48.6]} 23... Rbc8
{[%clk 0:00:35.2]} 24. Rhg1 {[%clk 0:01:33.3]} 24... a6 {[%clk 0:00:31.1]} 25.
Bxf5 {[%clk 0:01:30.3]} 25... Qxf5 {[%clk 0:00:27.1]} 26. Na3 {[%clk 0:01:30.8]}
26... Qf6 {[%clk 0:00:21.5]} 27. Nc4 {[%clk 0:01:22.6]} 27... b5 {[%clk
0:00:19]} 28. cxb6 {[%clk 0:01:12.8]} 28... Rxd6 {[%clk 0:00:19]} 29. b7 {[%clk
0:01:07.1]} 29... Rb8 {[%clk 0:00:18.6]} 30. Nxd6 {[%clk 0:01:07.5]} 30... Qxd6
{[%clk 0:00:18.2]} 31. Re4 {[%clk 0:01:05.4]} 31... Rxb7 {[%clk 0:00:17.8]} 32.
Rge1 {[%clk 0:01:06]} 32... Nb4 {[%clk 0:00:17.6]} 33. a3 {[%clk 0:01:04]} 33...
Nxc2 {[%clk 0:00:12]} 34. Kxc2 {[%clk 0:01:03.3]} 34... d3+ {[%clk 0:00:12.4]}
35. Kd1 {[%clk 0:00:52.9]} 35... Rxb2 {[%clk 0:00:12.5]} 36. Qc1 {[%clk
0:00:49.4]} 36... d2 {[%clk 0:00:12.5]} 37. Re8+ {[%clk 0:00:35.4]} 37... Kh7
{[%clk 0:00:13]} 38. Qxb2 {[%clk 0:00:32.6]} 38... dxe1=Q+ {[%clk 0:00:12.9]}
39. Kxe1 {[%clk 0:00:32.8]} 39... Bxb2 {[%clk 0:00:13.6]} 40. Kf1 {[%clk
0:00:33.3]} 40... Qd1+ {[%clk 0:00:13.4]} 41. Kg2 {[%clk 0:00:32.6]} 41... Qg4+
{[%clk 0:00:13.8]} 42. Kf1 {[%clk 0:00:32.8]} 42... Qxh4 {[%clk 0:00:12.9]} 43.
Re3 {[%clk 0:00:32.3]} 43... Bd4 {[%clk 0:00:13]} 44. Rg3 {[%clk 0:00:32.4]}
44... Qf4 {[%clk 0:00:12.5]} 45. Rd3 {[%clk 0:00:32.1]} 45... Qxf2# {[%clk
0:00:12.2]} 0-1

[Event "*** Titled Tuesday Blitz"]
[Site "Chess.com"]
[Date "2021.04.06"]
[Round "10"]
[White "VitaRasik"]
[Black "Dyadya81"]
[Result "0-1"]
[WhiteElo "2608"]
[BlackElo "2724"]
[TimeControl "180+1"]
[EndTime "11:56:12 PDT"]
[Termination "Dyadya81 won on time"]

1. e4 {[%clk 0:03:00.9]} 1... c6 {[%clk 0:02:55.4]} 2. c4 {[%clk 0:03:00.1]}
2... e5 {[%clk 0:02:53.8]} 3. Nf3 {[%clk 0:02:58.8]} 3... d6 {[%clk 0:02:53.8]}
4. Nc3 {[%clk 0:02:58.5]} 4... Nf6 {[%clk 0:02:53.8]} 5. d4 {[%clk 0:02:58.5]}
5... Nbd7 {[%clk 0:02:54.2]} 6. Be2 {[%clk 0:02:57.5]} 6... g6 {[%clk
0:02:54.4]} 7. O-O {[%clk 0:02:54.8]} 7... Bg7 {[%clk 0:02:54.8]} 8. d5 {[%clk
0:02:49.9]} 8... c5 {[%clk 0:02:45.7]} 9. Nb5 {[%clk 0:02:49.8]} 9... Nb8 {[%clk
0:02:37.7]} 10. Bd3 {[%clk 0:02:37.1]} 10... O-O {[%clk 0:02:35.2]} 11. Bg5
{[%clk 0:02:34.6]} 11... h6 {[%clk 0:02:32.2]} 12. Bd2 {[%clk 0:02:31.8]} 12...
a6 {[%clk 0:02:30.3]} 13. Nc3 {[%clk 0:02:31.7]} 13... Nh5 {[%clk 0:02:27.9]}
14. Re1 {[%clk 0:02:22.6]} 14... Nd7 {[%clk 0:02:24.6]} 15. a3 {[%clk
0:02:20.5]} 15... Nf4 {[%clk 0:02:24.2]} 16. Bf1 {[%clk 0:02:19.7]} 16... Nf6
{[%clk 0:01:55.9]} 17. b4 {[%clk 0:02:10.2]} 17... b6 {[%clk 0:01:50.7]} 18. Rb1
{[%clk 0:02:01.4]} 18... N6h5 {[%clk 0:01:50.5]} 19. a4 {[%clk 0:01:58.2]} 19...
Bg4 {[%clk 0:01:44.4]} 20. h3 {[%clk 0:01:45.8]} 20... Bd7 {[%clk 0:01:42.2]}
21. a5 {[%clk 0:01:40.4]} 21... cxb4 {[%clk 0:01:39.1]} 22. Rxb4 {[%clk
0:01:40.4]} 22... bxa5 {[%clk 0:01:39.5]} 23. Rb1 {[%clk 0:01:23.2]} 23... Rc8
{[%clk 0:01:34.6]} 24. Na4 {[%clk 0:01:15.5]} 24... f5 {[%clk 0:01:25]} 25. Nb6
{[%clk 0:01:07.5]} 25... fxe4 {[%clk 0:01:25]} 26. Nxd7 {[%clk 0:00:50.2]} 26...
exf3 {[%clk 0:01:19.3]} 27. Nxf8 {[%clk 0:00:50.1]} 27... fxg2 {[%clk
0:01:19.5]} 28. Bxg2 {[%clk 0:00:46.2]} 28... Qxf8 {[%clk 0:01:06.3]} 29. Rc1
{[%clk 0:00:33.4]} 29... Nd3 {[%clk 0:00:59.4]} 30. Qe2 {[%clk 0:00:27.9]} 30...
Nxc1 {[%clk 0:00:59.7]} 31. Rxc1 {[%clk 0:00:27.4]} 31... Nf4 {[%clk 0:00:54.8]}
32. Qe4 {[%clk 0:00:24.2]} 32... a4 {[%clk 0:00:50.2]} 33. c5 {[%clk 0:00:19.6]}
33... dxc5 {[%clk 0:00:42.2]} 34. d6 {[%clk 0:00:18]} 34... Qxd6 {[%clk
0:00:40.7]} 35. Bxf4 {[%clk 0:00:15.2]} 35... exf4 {[%clk 0:00:41]} 36. Qxa4
{[%clk 0:00:14.7]} 36... Bd4 {[%clk 0:00:41]} 37. Qc4+ {[%clk 0:00:13]} 37...
Kg7 {[%clk 0:00:37.7]} 38. Rb1 {[%clk 0:00:13.2]} 38... Rc7 {[%clk 0:00:36.3]}
39. Rb8 {[%clk 0:00:12.8]} 39... Rf7 {[%clk 0:00:35.8]} 40. Re8 {[%clk
0:00:12.6]} 40... f3 {[%clk 0:00:34.9]} 41. Bf1 {[%clk 0:00:12.4]} 41... Qg3+
{[%clk 0:00:34.7]} 42. Kh1 {[%clk 0:00:11]} 42... Qxf2 {[%clk 0:00:35]} 0-1

[Event "*** Titled Tuesday Blitz"]
[Site "Chess.com"]
[Date "2021.04.06"]
[Round "10"]
[White "RD4ever"]
[Black "mishanick"]
[Result "0-1"]
[WhiteElo "2889"]
[BlackElo "2953"]
[TimeControl "180+1"]
[EndTime "11:56:13 PDT"]
[Termination "mishanick won by resignation"]

1. d4 {[%clk 0:03:00.9]} 1... Nf6 {[%clk 0:03:00.1]} 2. c4 {[%clk 0:03:01]} 2...
e6 {[%clk 0:03:00.2]} 3. Nc3 {[%clk 0:03:01.2]} 3... d5 {[%clk 0:02:59.5]} 4.
Bg5 {[%clk 0:02:55]} 4... Nbd7 {[%clk 0:02:53.7]} 5. cxd5 {[%clk 0:02:48.5]}
5... exd5 {[%clk 0:02:53.3]} 6. e3 {[%clk 0:02:48.9]} 6... h6 {[%clk 0:02:52.9]}
7. Bh4 {[%clk 0:02:47.6]} 7... c6 {[%clk 0:02:52.9]} 8. Bd3 {[%clk 0:02:47.1]}
8... Be7 {[%clk 0:02:43.6]} 9. Nge2 {[%clk 0:02:46]} 9... O-O {[%clk 0:02:42.3]}
10. O-O {[%clk 0:02:46]} 10... Re8 {[%clk 0:02:42.8]} 11. f3 {[%clk 0:02:39.9]}
11... Nf8 {[%clk 0:02:39.8]} 12. Qc2 {[%clk 0:02:25]} 12... c5 {[%clk
0:02:36.7]} 13. Rad1 {[%clk 0:02:21.2]} 13... c4 {[%clk 0:01:49.4]} 14. Bf5
{[%clk 0:02:19.4]} 14... Bxf5 {[%clk 0:01:49.6]} 15. Qxf5 {[%clk 0:02:20.3]}
15... Qd7 {[%clk 0:01:49.3]} 16. Qc2 {[%clk 0:02:09.2]} 16... Ne6 {[%clk
0:01:17.3]} 17. Bf2 {[%clk 0:01:41.2]} 17... b5 {[%clk 0:01:12.4]} 18. e4 {[%clk
0:01:26.3]} 18... b4 {[%clk 0:01:11.4]} 19. e5 {[%clk 0:01:25.2]} 19... bxc3
{[%clk 0:01:03.5]} 20. exf6 {[%clk 0:01:23.9]} 20... Bxf6 {[%clk 0:01:03.8]} 21.
bxc3 {[%clk 0:01:20]} 21... Rab8 {[%clk 0:01:03.6]} 22. Rb1 {[%clk 0:01:14.7]}
22... Rb6 {[%clk 0:01:04.2]} 23. Bg3 {[%clk 0:01:07.3]} 23... h5 {[%clk
0:00:52.8]} 24. h3 {[%clk 0:00:55]} 24... h4 {[%clk 0:00:52.5]} 25. Bh2 {[%clk
0:00:55.2]} 25... Bg5 {[%clk 0:00:51.2]} 26. a4 {[%clk 0:00:43.4]} 26... Nd8
{[%clk 0:00:38.8]} 27. Kh1 {[%clk 0:00:31.4]} 27... Rbe6 {[%clk 0:00:36]} 28.
Ng1 {[%clk 0:00:29.9]} 28... Be3 {[%clk 0:00:30.1]} 29. Ne2 {[%clk 0:00:21.1]}
29... Nc6 {[%clk 0:00:27.7]} 30. Rb5 {[%clk 0:00:19.7]} 30... a6 {[%clk
0:00:25.2]} 31. Rb6 {[%clk 0:00:18.7]} 31... Nxd4 {[%clk 0:00:22.6]} 32. cxd4
{[%clk 0:00:06.8]} 32... Rxb6 {[%clk 0:00:22.5]} 33. Bf4 {[%clk 0:00:04.2]}
33... Rb3 {[%clk 0:00:19.9]} 34. Bh2 {[%clk 0:00:03.5]} 34... Rd3 {[%clk
0:00:19.5]} 35. Nc3 {[%clk 0:00:02.2]} 35... Bxd4 {[%clk 0:00:19]} 0-1

[Event "*** Titled Tuesday Blitz"]
[Site "Chess.com"]
[Date "2021.04.06"]
[Round "10"]
[White "Kale36"]
[Black "PushingpawnsNYC"]
[Result "1-0"]
[WhiteElo "2400"]
[BlackElo "2293"]
[TimeControl "180+1"]
[EndTime "11:56:13 PDT"]
[Termination "Kale36 won by checkmate"]

1. d4 {[%clk 0:03:00.9]} 1... Nf6 {[%clk 0:02:56.2]} 2. Nc3 {[%clk 0:03:00.8]}
2... g6 {[%clk 0:02:54.4]} 3. Bg5 {[%clk 0:03:00.2]} 3... Bg7 {[%clk 0:02:48.3]}
4. e4 {[%clk 0:02:59.9]} 4... d6 {[%clk 0:02:48]} 5. f4 {[%clk 0:03:00.1]} 5...
c6 {[%clk 0:02:47.7]} 6. Nf3 {[%clk 0:02:58.9]} 6... h6 {[%clk 0:02:39.3]} 7.
Bh4 {[%clk 0:02:58.4]} 7... b5 {[%clk 0:02:32.7]} 8. Bd3 {[%clk 0:02:56]} 8...
b4 {[%clk 0:02:29.4]} 9. Ne2 {[%clk 0:02:55.2]} 9... a5 {[%clk 0:02:28.6]} 10.
O-O {[%clk 0:02:49.6]} 10... Qb6 {[%clk 0:02:22.6]} 11. c4 {[%clk 0:02:38.4]}
11... bxc3 {[%clk 0:01:57.1]} 12. bxc3 {[%clk 0:02:36.2]} 12... Ba6 {[%clk
0:01:53.7]} 13. Rb1 {[%clk 0:02:31.5]} 13... Qa7 {[%clk 0:01:49.1]} 14. e5
{[%clk 0:02:18.7]} 14... dxe5 {[%clk 0:01:47.2]} 15. fxe5 {[%clk 0:02:11.5]}
15... Nd5 {[%clk 0:01:44.8]} 16. Bf2 {[%clk 0:02:08.5]} 16... Qc7 {[%clk
0:01:28.5]} 17. a3 {[%clk 0:01:58.8]} 17... O-O {[%clk 0:01:22.8]} 18. c4 {[%clk
0:01:57.6]} 18... Nb6 {[%clk 0:01:21.4]} 19. Qc2 {[%clk 0:01:55.7]} 19... N8d7
{[%clk 0:01:16.2]} 20. c5 {[%clk 0:01:17.9]} 20... Nd5 {[%clk 0:01:10.5]} 21.
Bxa6 {[%clk 0:01:15.2]} 21... Rxa6 {[%clk 0:01:04]} 22. Nc3 {[%clk 0:01:04.7]}
22... Nf4 {[%clk 0:00:32.5]} 23. Be3 {[%clk 0:00:52.3]} 23... Ne6 {[%clk
0:00:30]} 24. Ne4 {[%clk 0:00:43.7]} 24... Raa8 {[%clk 0:00:22.1]} 25. Rf2
{[%clk 0:00:42.8]} 25... Rab8 {[%clk 0:00:21.7]} 26. Rbf1 {[%clk 0:00:42.9]}
26... f5 {[%clk 0:00:19.2]} 27. Qc4 {[%clk 0:00:35.3]} 27... fxe4 {[%clk
0:00:15.3]} 28. Qxe6+ {[%clk 0:00:35.4]} 28... Kh7 {[%clk 0:00:15.1]} 29. Nh4
{[%clk 0:00:35.6]} 29... g5 {[%clk 0:00:12.6]} 30. Qg6+ {[%clk 0:00:33]} 30...
Kh8 {[%clk 0:00:12.8]} 31. Nf5 {[%clk 0:00:32.5]} 31... Rxf5 {[%clk 0:00:10.6]}
32. Rxf5 {[%clk 0:00:32.1]} 32... Rf8 {[%clk 0:00:10.1]} 33. Rf7 {[%clk
0:00:31.4]} 33... Rg8 {[%clk 0:00:08]} 34. Rxe7 {[%clk 0:00:28]} 34... Qd8
{[%clk 0:00:08.1]} 35. Rff7 {[%clk 0:00:27.2]} 35... Nf8 {[%clk 0:00:07.9]} 36.
Rxg7 {[%clk 0:00:20.6]} 36... Qxe7 {[%clk 0:00:04.8]} 37. Qxh6+ {[%clk 0:00:17]}
37... Nh7 {[%clk 0:00:03.4]} 38. Qxh7# {[%clk 0:00:16.8]} 1-0

[Event "*** Titled Tuesday Blitz"]
[Site "Chess.com"]
[Date "2021.04.06"]
[Round "10"]
[White "zala02"]
[Black "DFeco"]
[Result "1-0"]
[WhiteElo "2172"]
[BlackElo "2300"]
[TimeControl "180+1"]
[EndTime "11:56:13 PDT"]
[Termination "zala02 won on time"]

1. e4 {[%clk 0:03:00.9]} 1... e5 {[%clk 0:02:59]} 2. Nf3 {[%clk 0:03:00.7]} 2...
Nc6 {[%clk 0:02:58.2]} 3. Bc4 {[%clk 0:03:00.7]} 3... Nf6 {[%clk 0:02:57.2]} 4.
d3 {[%clk 0:02:59.2]} 4... Be7 {[%clk 0:02:55.8]} 5. O-O {[%clk 0:02:57.7]} 5...
O-O {[%clk 0:02:55.2]} 6. Re1 {[%clk 0:02:53.9]} 6... d6 {[%clk 0:02:54.9]} 7.
Nbd2 {[%clk 0:02:53.5]} 7... a6 {[%clk 0:02:51.5]} 8. Nf1 {[%clk 0:02:47.8]}
8... Na5 {[%clk 0:02:50.4]} 9. Ng3 {[%clk 0:02:43]} 9... Nxc4 {[%clk 0:02:48.2]}
10. dxc4 {[%clk 0:02:43.9]} 10... h6 {[%clk 0:02:47.7]} 11. Be3 {[%clk
0:02:38.6]} 11... Bg4 {[%clk 0:02:39.1]} 12. Qe2 {[%clk 0:02:37.8]} 12... Qd7
{[%clk 0:02:22.7]} 13. Rad1 {[%clk 0:02:34.6]} 13... Qc6 {[%clk 0:02:21.4]} 14.
b3 {[%clk 0:02:30.7]} 14... Nxe4 {[%clk 0:02:17.4]} 15. Nxe5 {[%clk 0:02:16.2]}
15... Bxe2 {[%clk 0:01:53.2]} 16. Nxc6 {[%clk 0:02:15.6]} 16... bxc6 {[%clk
0:01:52.8]} 17. Nxe2 {[%clk 0:02:02.4]} 17... c5 {[%clk 0:01:30.6]} 18. f3
{[%clk 0:01:59.4]} 18... Nf6 {[%clk 0:01:17.7]} 19. Nf4 {[%clk 0:01:58.9]} 19...
Rfe8 {[%clk 0:01:13]} 20. Kf2 {[%clk 0:01:58.3]} 20... g5 {[%clk 0:01:11.7]} 21.
Ne2 {[%clk 0:01:54.1]} 21... Nd7 {[%clk 0:01:10.6]} 22. Nc3 {[%clk 0:01:52.3]}
22... Nb6 {[%clk 0:01:09]} 23. Bd2 {[%clk 0:01:47.5]} 23... Bf6 {[%clk
0:01:08.3]} 24. Ne4 {[%clk 0:01:44.5]} 24... Bd4+ {[%clk 0:01:07.2]} 25. Kf1
{[%clk 0:01:43.5]} 25... f5 {[%clk 0:01:03]} 26. Ng3 {[%clk 0:01:41.7]} 26...
Rf8 {[%clk 0:00:56.2]} 27. Re7 {[%clk 0:01:35.9]} 27... Rac8 {[%clk 0:00:50.8]}
28. Rde1 {[%clk 0:01:30.4]} 28... Be5 {[%clk 0:00:37.8]} 29. f4 {[%clk
0:01:23.2]} 29... gxf4 {[%clk 0:00:32]} 30. Nh5 {[%clk 0:01:22.4]} 30... Rf7
{[%clk 0:00:29.9]} 31. Rxf7 {[%clk 0:01:18.1]} 31... Kxf7 {[%clk 0:00:29.6]} 32.
Bxf4 {[%clk 0:01:17]} 32... Bxf4 {[%clk 0:00:28]} 33. Nxf4 {[%clk 0:01:17.9]}
33... Nd7 {[%clk 0:00:27]} 34. Nd5 {[%clk 0:01:15.1]} 34... Ne5 {[%clk
0:00:24.9]} 35. h3 {[%clk 0:01:07.3]} 35... Rg8 {[%clk 0:00:04.5]} 36. Kf2
{[%clk 0:01:06.1]} 36... c6 {[%clk 0:00:03.2]} 37. Ne3 {[%clk 0:01:01.3]} 37...
Kf6 {[%clk 0:00:02.3]} 38. Rd1 {[%clk 0:00:59.7]} 38... Ke6 {[%clk 0:00:01.7]}
39. Rd2 {[%clk 0:00:53]} 39... f4 {[%clk 0:00:01.6]} 40. Nd1 {[%clk 0:00:50.3]}
40... Rf8 {[%clk 0:00:01.9]} 41. Nc3 {[%clk 0:00:47.2]} 41... f3 {[%clk
0:00:01.8]} 42. g3 {[%clk 0:00:45.7]} 42... Rd8 {[%clk 0:00:01.1]} 43. Ne4
{[%clk 0:00:44.7]} 43... a5 {[%clk 0:00:01.2]} 44. Nxc5+ {[%clk 0:00:43.6]} 1-0

[Event "*** Titled Tuesday Blitz"]
[Site "Chess.com"]
[Date "2021.04.06"]
[Round "10"]
[White "exoticprincess"]
[Black "A-Fier"]
[Result "0-1"]
[WhiteElo "2925"]
[BlackElo "2747"]
[TimeControl "180+1"]
[EndTime "11:56:14 PDT"]
[Termination "A-Fier won by resignation"]

1. e4 {[%clk 0:02:50]} 1... c5 {[%clk 0:02:59.8]} 2. d4 {[%clk 0:02:49.6]} 2...
cxd4 {[%clk 0:02:58.9]} 3. c3 {[%clk 0:02:50.1]} 3... Nf6 {[%clk 0:02:58.1]} 4.
e5 {[%clk 0:02:50.1]} 4... Nd5 {[%clk 0:02:58.5]} 5. Qxd4 {[%clk 0:02:51]} 5...
e6 {[%clk 0:02:56.7]} 6. Nf3 {[%clk 0:02:51.6]} 6... Nc6 {[%clk 0:02:56.9]} 7.
Qg4 {[%clk 0:02:52.1]} 7... Qc7 {[%clk 0:02:46.8]} 8. Qg3 {[%clk 0:02:49.5]}
8... f6 {[%clk 0:02:24.8]} 9. exf6 {[%clk 0:02:48.3]} 9... Qxg3 {[%clk
0:02:24.7]} 10. f7+ {[%clk 0:02:49.2]} 10... Kxf7 {[%clk 0:02:24.6]} 11. hxg3
{[%clk 0:02:50.1]} 11... Be7 {[%clk 0:02:18.4]} 12. Nbd2 {[%clk 0:02:49.7]}
12... h6 {[%clk 0:02:14.8]} 13. Bd3 {[%clk 0:02:46.8]} 13... Rf8 {[%clk
0:02:13.6]} 14. Ke2 {[%clk 0:02:43.8]} 14... b6 {[%clk 0:02:13.6]} 15. Nc4
{[%clk 0:02:40.2]} 15... d6 {[%clk 0:02:04.5]} 16. Rd1 {[%clk 0:02:36.3]} 16...
Bb7 {[%clk 0:02:03.6]} 17. Be4 {[%clk 0:02:28.6]} 17... Ba6 {[%clk 0:01:50.4]}
18. Bd3 {[%clk 0:02:23.9]} 18... Bb7 {[%clk 0:01:50.6]} 19. a4 {[%clk
0:02:18.6]} 19... Rad8 {[%clk 0:01:48.6]} 20. a5 {[%clk 0:01:53.4]} 20... b5
{[%clk 0:01:47.7]} 21. Ne3 {[%clk 0:01:52.9]} 21... Nxe3 {[%clk 0:01:45]} 22.
Bxe3 {[%clk 0:01:53.8]} 22... a6 {[%clk 0:01:45.5]} 23. Bb6 {[%clk 0:01:53.5]}
23... Rc8 {[%clk 0:01:43.1]} 24. Ke3 {[%clk 0:01:40.8]} 24... Bf6 {[%clk
0:01:41.7]} 25. Be4 {[%clk 0:01:37.9]} 25... Ke7 {[%clk 0:01:41.9]} 26. Rac1
{[%clk 0:01:33.5]} 26... g5 {[%clk 0:01:39.4]} 27. g4 {[%clk 0:01:33.1]} 27...
Bg7 {[%clk 0:01:36.6]} 28. g3 {[%clk 0:01:28.4]} 28... Rf7 {[%clk 0:01:10.5]}
29. Rd2 {[%clk 0:01:22.5]} 29... d5 {[%clk 0:01:10.8]} 30. Bb1 {[%clk
0:01:08.2]} 30... Kd7 {[%clk 0:01:07.4]} 31. Bd3 {[%clk 0:00:45.3]} 31... Rcf8
{[%clk 0:01:04.2]} 32. Be2 {[%clk 0:00:45.5]} 32... Ne5 {[%clk 0:01:03]} 33.
Nxe5+ {[%clk 0:00:45.3]} 33... Bxe5 {[%clk 0:01:03.2]} 34. Bc5 {[%clk
0:00:45.2]} 34... Rc8 {[%clk 0:00:58.8]} 35. Bd4 {[%clk 0:00:45.3]} 35... Bc7
{[%clk 0:00:53.3]} 36. Rh1 {[%clk 0:00:45.4]} 36... e5 {[%clk 0:00:47.1]} 37.
Bb6 {[%clk 0:00:45.1]} 37... d4+ {[%clk 0:00:47.1]} 38. cxd4 {[%clk 0:00:42.6]}
38... Bxh1 {[%clk 0:00:47.7]} 39. dxe5+ {[%clk 0:00:42.2]} 39... Ke6 {[%clk
0:00:47.9]} 40. f3 {[%clk 0:00:42.2]} 40... Bxb6+ {[%clk 0:00:39]} 41. axb6
{[%clk 0:00:43.1]} 41... Rc1 {[%clk 0:00:39]} 42. Rd6+ {[%clk 0:00:37.2]} 42...
Kxe5 {[%clk 0:00:37.6]} 43. Rxh6 {[%clk 0:00:38.1]} 43... Kd5 {[%clk 0:00:36.9]}
44. b4 {[%clk 0:00:35.7]} 44... Re7+ {[%clk 0:00:30.6]} 45. Kd2 {[%clk
0:00:35.6]} 45... Rg1 {[%clk 0:00:31.1]} 46. Bd1 {[%clk 0:00:28.5]} 46... Rxd1+
{[%clk 0:00:31.1]} 47. Kxd1 {[%clk 0:00:28.4]} 47... Bxf3+ {[%clk 0:00:32]} 48.
Kd2 {[%clk 0:00:29.1]} 48... Kc4 {[%clk 0:00:30.4]} 49. Rf6 {[%clk 0:00:26.8]}
49... Bxg4 {[%clk 0:00:29.3]} 50. Rc6+ {[%clk 0:00:26.9]} 50... Kxb4 {[%clk
0:00:29.7]} 0-1